fUST/lending_fUST_20260609
["ID","MTS","AMOUNT","RATE_DAILY","PERIOD"]
[424595048,1781009439000,-151.5,0.00016126,2]
[424595046,1781009439000,-600.0,0.00015949,2]
[424595038,1781009439000,-300.0,0.00015949,2]
[424595044,1781009439000,-300.0,0.00015949,2]
[424595040,1781009439000,-300.0,0.00015949,2]
[424595036,1781009439000,-300.0,0.00015949,2]
[424595022,1781009439000,-300.0,0.00015949,2]
[424595024,1781009439000,-300.0,0.00015949,2]
[424595020,1781009439000,-300.0,0.00015949,2]
[424595017,1781009439000,-300.0,0.00015949,2]
[424595034,1781009439000,-300.0,0.00015949,2]
[424595019,1781009439000,-300.0,0.00015949,2]
[424595042,1781009439000,-300.0,0.00015949,2]
[424595889,1781009447000,-28.70843283,0.00016164,7]
[424595891,1781009447000,-151.0,0.00016228,2]
[424595897,1781009447000,-24.27086959,0.00016237,2]
[424595893,1781009447000,-500.0,0.00016237,2]
[424595895,1781009447000,-500.0,0.00016237,2]
[424601129,1781010111000,-2094.97608506,0.00015145,2]
[424601252,1781010565000,4935.603017,0.00017,30]
[424601557,1781010643000,-225.56831534,0.00014695,2]
[424601559,1781010643000,-760.76031702,0.00014844,10]
[424601558,1781010643000,-172.84917711,0.00014843,2]
[424601556,1781010643000,-1262.70776101,0.00014695,2]
[424601576,1781010646000,-2769.49731269,0.00014844,10]
[424601577,1781010646000,-11953.68454315,0.00014844,10]
[424601578,1781010646000,-417.15472785,0.00014844,10]
[424601580,1781010646000,-979.8159587,0.0001507,2]
[424601581,1781010646000,-1000.0,0.00015464,5]
[424601582,1781010646000,-375.73960239,0.00015762,2]
[424601583,1781010646000,-210.89631303,0.00015762,2]
[424601579,1781010646000,-224.1633437,0.00015013,2]
[424601686,1781011831000,-323.9652,0.000147,2]
[424601691,1781011832000,-1229.51978514,0.000147,2]
[424601693,1781011832000,-677.16656477,0.00014844,7]
[424601692,1781011832000,-2928.93343523,0.000147,2]
[424601756,1781011838000,-5384.32389443,0.00014844,7]
[424601758,1781011838000,-3655.56547548,0.00015,2]
[424601760,1781011838000,-576.91377189,0.00015141,7]
[424601751,1781011838000,-229.51978514,0.00014843,2]
[424601755,1781011838000,-500.0,0.00014843,2]
[424601753,1781011838000,-500.0,0.00014843,2]
[424601762,1781011838000,-443.46890804,0.00015141,7]
[424601764,1781011838000,-1919.22683145,0.00015141,7]
[424601767,1781011838000,-3121.88094782,0.00015141,7]
[424601768,1781011838000,-417.15472785,0.00015141,7]
[424601770,1781011838000,-689.86872101,0.00015218,2]
[424601772,1781011838000,-576.43314197,0.00015317,2]
[424601774,1781011838000,-194.29045588,0.00015317,2]
[424601776,1781011838000,-195.57447594,0.00015317,2]
[424601779,1781011838000,-380.85866603,0.00015317,2]
[424601786,1781011838000,-576.43314197,0.00015317,2]
[424601782,1781011838000,-576.43314197,0.00015317,2]
[424601780,1781011838000,-576.43314197,0.00015317,2]
[424601806,1781011838000,-576.43314197,0.00015317,2]
[424601800,1781011838000,-576.43314197,0.00015317,2]
[424601791,1781011838000,-576.43314197,0.00015317,2]
[424601802,1781011838000,-576.43314197,0.00015317,2]
[424601793,1781011838000,-576.43314197,0.00015317,2]
[424601808,1781011838000,-241.31210083,0.00015317,2]
[424601795,1781011838000,-576.43314197,0.00015317,2]
[424601797,1781011838000,-576.43314197,0.00015317,2]
[424601784,1781011838000,-576.43314197,0.00015317,2]
[424601804,1781011838000,-576.43314197,0.00015317,2]
[424601789,1781011838000,-490.44319479,0.00015317,2]
[424601798,1781011838000,-576.43314197,0.00015317,2]
[424601788,1781011838000,-85.98994718,0.00015317,2]
[424602062,1781011840000,-2359.33842026,0.0001532,2]
[424602060,1781011840000,-335.12104114,0.00015317,2]
[424602359,1781011843000,-1000.0,0.00015496,5]
[424602360,1781011843000,-955.60718118,0.00015586,7]
[424602356,1781011843000,-1823.98560654,0.0001532,2]
[424602708,1781011846000,-152.0,0.00015904,2]
[424602704,1781011846000,-222.95451857,0.00015762,2]
[424602706,1781011846000,-437.96656904,0.00015781,2]
[424602702,1781011846000,-5105.88327802,0.00015586,7]
[424602710,1781011846000,-13081.83549619,0.00015932,2]
[424604005,1781011995000,12998.1788,0.00023562,30]
[424604091,1781012362000,-152.0,0.00017043,30]
[424604099,1781012411000,246.99,5e-05,2]
[424604102,1781012514000,152.0,0.00017043,30]
[424604178,1781013032000,-157.19085516,0.00015729,2]
[424604165,1781013032000,-3307.62928962,0.00014108,2]
[424604164,1781013032000,-269.08724583,0.00014108,2]
[424604166,1781013032000,-1423.28346455,0.00014108,2]
[424604170,1781013032000,-577.59911596,0.00014394,2]
[424604169,1781013032000,-370.03346768,0.00014394,2]
[424604167,1781013032000,-294.94268881,0.00014394,2]
[424604173,1781013032000,-151.0,0.00015722,2]
[424604171,1781013032000,-152.0,0.00015609,7]
[424604174,1781013032000,-500.0,0.00015729,2]
[424604172,1781013032000,-152.0,0.00015609,7]
[424604175,1781013032000,-500.0,0.00015729,2]
[424604177,1781013032000,-500.0,0.00015729,2]
[424604180,1781013032000,-79.08663819,0.00015729,2]
[424604176,1781013032000,-500.0,0.00015729,2]
[424604181,1781013032000,-500.0,0.00015729,2]
[424604179,1781013032000,-420.91336181,0.00015729,2]
[424604182,1781013032000,-245.64066431,0.00015729,2]
[424604168,1781013032000,-323.77928422,0.00014394,2]
[424604280,1781013038000,-500.0,0.00015728,2]
[424604284,1781013038000,-355.0346611,0.00015728,2]
[424604282,1781013038000,-500.0,0.00015728,2]
[424604573,1781013041000,-144.9653389,0.00015728,2]
[424604579,1781013041000,-265.77418937,0.00015728,2]
[424604581,1781013041000,-234.22581063,0.00015728,2]
[424604585,1781013041000,-278.22581063,0.00015728,2]
[424604583,1781013041000,-221.77418937,0.00015728,2]
[424604571,1781013041000,-152.0,0.00015589,7]
[424604577,1781013041000,-500.0,0.00015728,2]
[424604587,1781013041000,-500.0,0.00015728,2]
[424604598,1781013041000,-330.91521414,0.00015728,2]
[424604589,1781013041000,-417.67809588,0.00015728,2]
[424604592,1781013041000,-82.32190412,0.00015728,2]
[424604596,1781013041000,-28.5857859,0.00015728,2]
[424604594,1781013041000,-471.4142141,0.00015728,2]
[424604575,1781013041000,-500.0,0.00015728,2]
[424604900,1781013043000,-152.0,0.00015589,7]
[424604915,1781013043000,-500.0,0.00015728,2]
[424604917,1781013043000,-500.0,0.00015728,2]
[424604911,1781013043000,-500.0,0.00015728,2]
[424604909,1781013043000,-500.0,0.00015728,2]
[424604919,1781013043000,-500.0,0.00015728,2]
[424604907,1781013043000,-393.31077249,0.00015728,2]
[424604904,1781013043000,-106.68922751,0.00015728,2]
[424604913,1781013043000,-453.5691463,0.00015728,2]
[424604920,1781013043000,-475.72913041,0.00015731,2]
[424604922,1781013043000,-3054.48810291,0.00015732,2]
[424604925,1781013043000,-1486.10757335,0.00015732,2]
[424604927,1781013043000,-5064.92389278,0.00015732,2]
[424604929,1781013043000,-8687.26933645,0.00015732,2]
[424604902,1781013043000,-169.08478586,0.00015728,2]
[424605281,1781013046000,-1587.90866167,0.00015732,2]
[424605278,1781013046000,-12649.93072132,0.00015732,2]
[424605251,1781013046000,-4750.14617314,0.00015732,2]
[424611676,1781013711000,-3934.67104327,0.0001485,2]
[424611907,1781014232000,-1204.23062129,0.0001425,2]
[424611913,1781014232000,-450.5909717,0.0001425,2]
[424612574,1781014238000,-2144.03600982,0.00015549,2]
[424612570,1781014238000,-336.74028129,0.00014394,2]
[424612572,1781014238000,-196.31835692,0.00015394,2]
[424612568,1781014238000,-1270.27473068,0.0001425,2]
[424612555,1781014238000,-2074.90367633,0.0001425,2]
[424613019,1781014243000,-356.26371988,0.00015729,2]
[424613004,1781014243000,-12451.32928648,0.00015549,2]
[424613006,1781014243000,-531.0523328,0.00015549,2]
[424613008,1781014243000,-1141.7011994,0.00015549,2]
[424613010,1781014243000,-152.0,0.00015584,7]
[424613014,1781014243000,-199.70739052,0.00015729,2]
[424613021,1781014243000,-443.56774246,0.00015729,2]
[424613016,1781014243000,-228.23701774,0.00015729,2]
[424613032,1781014243000,-166.0,0.00015732,2]
[424613023,1781014243000,-11362.3599616,0.00015732,2]
[424613025,1781014243000,-17930.95180152,0.00015732,2]
[424613034,1781014243000,-166.0,0.00015732,2]
[424613030,1781014243000,-166.0,0.00015732,2]
[424613012,1781014243000,-152.0,0.00015584,7]
[424613036,1781014244000,-166.0,0.00015732,2]
[424613040,1781014244000,-152.0,0.00015831,2]
[424613038,1781014244000,-172.0,0.00015732,2]
[424613044,1781014244000,-1000.0,0.00015932,2]
[424613046,1781014244000,-274.13699178,0.00015932,2]
[424613042,1781014244000,-1000.0,0.00015932,2]
[424613438,1781014247000,-151.0,0.00016171,2]
[424613434,1781014247000,-160.0,0.00016167,2]
[424613432,1781014247000,-457.3719674,0.00016166,2]
[424613430,1781014247000,-151.0,0.00016166,2]
[424613436,1781014247000,-151.0,0.00016171,2]
[424613443,1781014247000,-151.0,0.00016171,2]
[424613442,1781014247000,-151.0,0.00016171,2]
[424613440,1781014247000,-151.0,0.00016171,2]
[424613428,1781014247000,-151.0,0.00016166,2]
[424613416,1781014247000,-151.0,0.00016166,2]
[424613426,1781014247000,-151.3239822,0.00016166,2]
[424613422,1781014247000,-151.0,0.00016166,2]
[424613418,1781014247000,-151.0,0.00016166,2]
[424613413,1781014247000,-151.0,0.00016166,2]
[424613450,1781014247000,-151.0,0.00016171,2]
[424613420,1781014247000,-151.0964842,0.00016166,2]
[424613411,1781014247000,-6061.4904592,0.00016032,7]
[424613406,1781014247000,-725.86300822,0.00015932,2]
[424613410,1781014247000,-1028.12976004,0.00015932,2]
[424613408,1781014247000,-1000.0,0.00015932,2]
[424613424,1781014247000,-456.4405477,0.00016166,2]
[424613448,1781014247000,-151.0,0.00016171,2]
[424613454,1781014247000,-151.0,0.00016171,2]
[424613446,1781014247000,-151.0,0.00016171,2]
[424613497,1781014247000,-500.0,0.00016438,2]
[424613495,1781014247000,-500.0,0.00016438,2]
[424613492,1781014247000,-500.0,0.00016438,2]
[424613490,1781014247000,-500.0,0.00016438,2]
[424613488,1781014247000,-500.0,0.00016438,2]
[424613486,1781014247000,-417.15472785,0.00016436,2]
[424613458,1781014247000,-457.3719674,0.00016171,2]
[424613481,1781014247000,-177.35568318,0.000164,2]
[424613479,1781014247000,-630.04360084,0.000164,2]
[424613477,1781014247000,-203.80254571,0.00016356,3]
[424613483,1781014247000,-151.0,0.00016428,2]
[424613464,1781014247000,-457.3719674,0.00016171,2]
[424613475,1781014247000,-162.962707,0.00016281,2]
[424613452,1781014247000,-151.0,0.00016171,2]
[424613460,1781014247000,-457.3719674,0.00016171,2]
[424613471,1781014247000,-457.3719674,0.00016171,2]
[424613456,1781014247000,-457.3719674,0.00016171,2]
[424613462,1781014247000,-457.3719674,0.00016171,2]
[424613469,1781014247000,-326.5044788,0.00016171,2]
[424613466,1781014247000,-457.3719674,0.00016171,2]
[424613473,1781014247000,-326.5044788,0.00016171,2]
[424613515,1781014248000,-500.0,0.00016438,2]
[424613507,1781014248000,-500.0,0.00016438,2]
[424613504,1781014248000,-500.0,0.00016438,2]
[424613502,1781014248000,-500.0,0.00016438,2]
[424613499,1781014248000,-500.0,0.00016438,2]
[424613520,1781014248000,-500.0,0.00016438,2]
[424613524,1781014248000,-500.0,0.00016438,2]
[424613511,1781014248000,-520.11,0.00016438,2]
[424613513,1781014248000,-500.0,0.00016438,2]
[424613517,1781014248000,-500.0,0.00016438,2]
[424613533,1781014248000,-500.0,0.00016438,2]
[424613526,1781014248000,-189.27687041,0.00016438,2]
[424613528,1781014248000,-500.0,0.00016438,2]
[424613531,1781014248000,-500.0,0.00016438,2]
[424613534,1781014248000,-139.21583833,0.00016438,2]
[424613522,1781014248000,-500.0,0.00016438,2]
[424617273,1781015056000,319.13800901,2.3e-05,7]
[424617279,1781015270000,-1890.42062899,0.0001,2]
[424617277,1781015270000,-5000.0,9.702e-05,2]
[424617278,1781015270000,-466.05180926,9.999e-05,2]
[424617276,1781015270000,-2643.52756175,9.605e-05,2]
[424617280,1781015272000,-253.27717161,0.0001,2]
[424617281,1781015272000,-9746.72282839,0.0001,2]
[424617293,1781015279000,-1209.34021158,0.0001,2]
[424617292,1781015279000,-529.65978842,0.0001,2]
[424617381,1781015432000,-60.58301882,0.0001,2]
[424617380,1781015432000,-5000.0,9.9e-05,2]
[424617475,1781015439000,-220.3789834,0.00015344,2]
[424617472,1781015439000,-201.04871543,0.000109,2]
[424617473,1781015439000,-4100.0,0.00015,2]
[424617477,1781015439000,-151.0,0.00015344,2]
[424617479,1781015439000,-151.0,0.00015344,2]
[424617470,1781015439000,-531.28036236,0.0001,2]
[424617481,1781015439000,-151.0,0.00015344,2]
[424617483,1781015439000,-246.0391476,0.00015344,2]
[424617468,1781015439000,-871.71238038,0.0001,2]
[424617485,1781015439000,-151.0,0.00015344,2]
[424617500,1781015439000,-1298.48601767,0.00015422,2]
[424617496,1781015439000,-457.3719674,0.00015349,2]
[424617494,1781015439000,-456.7594766,0.00015344,2]
[424617498,1781015439000,-152.0,0.00015396,7]
[424617502,1781015439000,-5213.9629631,0.00015432,2]
[424617490,1781015439000,-457.3719674,0.00015344,2]
[424617488,1781015439000,-151.0,0.00015344,2]
[424617487,1781015439000,-151.0,0.00015344,2]
[424617492,1781015439000,-151.0,0.00015344,2]
[424618065,1781015443000,-5635.57760414,0.00015432,2]
[424618063,1781015443000,-44.37301382,0.00015432,2]
[424618054,1781015443000,-148.05810977,0.00015432,2]
[424618442,1781015446000,-29679.53552119,0.00015432,2]
[424618440,1781015446000,-3100.0,0.00015432,2]
[424618459,1781015447000,-26794.65451237,0.00015432,2]
[424625242,1781015710000,210.93117071,0.00023563,120]
[424625243,1781015743000,152.0,0.00017086,30]
[424625433,1781016422000,162.32004973,7.547e-05,2]
[424625473,1781016632000,-5000.0,0.00013084,2]
[424625476,1781016632000,-208.20700267,0.00013216,2]
[424625478,1781016632000,-154.0,0.00013967,2]
[424625480,1781016632000,-534.84509427,0.00014065,2]
[424625484,1781016632000,-315.0,0.00014099,2]
[424625482,1781016632000,-93.22624896,0.00014099,2]
[424625498,1781016632000,-500.0,0.00014099,2]
[424625488,1781016632000,-508.14369438,0.00014099,2]
[424625496,1781016632000,-500.0,0.00014099,2]
[424625500,1781016632000,-500.0,0.00014099,2]
[424625502,1781016632000,-500.0,0.00014099,2]
[424625494,1781016632000,-500.0,0.00014099,2]
[424625492,1781016632000,-500.0,0.00014099,2]
[424625490,1781016632000,-500.0,0.00014099,2]
[424625475,1781016632000,-193.37829373,0.00013216,2]
[424625504,1781016632000,-500.0,0.00014099,2]
[424625486,1781016632000,-91.77375104,0.00014099,2]
[424625505,1781016632000,-500.0,0.00014099,2]
[424625509,1781016632000,-500.0,0.00014099,2]
[424625537,1781016632000,-285.94924944,0.000141,2]
[424625535,1781016632000,-3052.5,0.000141,2]
[424625530,1781016632000,-635.16775901,0.000141,2]
[424625528,1781016632000,-375.42109958,0.000141,2]
[424625524,1781016632000,-500.0,0.00014099,2]
[424625526,1781016632000,-3396.674247,0.000141,2]
[424625532,1781016632000,-604.645,0.000141,2]
[424625519,1781016632000,-500.0,0.00014099,2]
[424625521,1781016632000,-500.0,0.00014099,2]
[424625517,1781016632000,-500.0,0.00014099,2]
[424625515,1781016632000,-500.0,0.00014099,2]
[424625513,1781016632000,-491.96245214,0.00014099,2]
[424625511,1781016632000,-500.0,0.00014099,2]
[424625507,1781016632000,-500.0,0.00014099,2]
[424625522,1781016632000,-241.54173967,0.00014099,2]
[424625939,1781016638000,-560.85008685,0.00014521,2]
[424625953,1781016638000,-560.85008685,0.00014521,2]
[424625942,1781016638000,-560.85008685,0.00014521,2]
[424625944,1781016638000,-560.85008685,0.00014521,2]
[424625956,1781016638000,-560.85008685,0.00014521,2]
[424625949,1781016638000,-560.85008685,0.00014521,2]
[424625951,1781016638000,-560.85008685,0.00014521,2]
[424625937,1781016638000,-560.85008685,0.00014521,2]
[424625946,1781016638000,-560.85008685,0.00014521,2]
[424625935,1781016638000,-560.85008685,0.00014521,2]
[424625915,1781016638000,-305.09,0.000141,2]
[424625930,1781016638000,-560.85008685,0.00014521,2]
[424625920,1781016638000,-301.16871441,0.00014521,2]
[424625928,1781016638000,-560.85008685,0.00014521,2]
[424625925,1781016638000,-560.85008685,0.00014521,2]
[424625923,1781016638000,-560.85008685,0.00014521,2]
[424625918,1781016638000,-6258.5148241,0.000141,2]
[424625960,1781016638000,-560.85008685,0.00014521,2]
[424625912,1781016638000,-2387.19866687,0.000141,2]
[424625910,1781016638000,-3712.80133313,0.00013959,2]
[424625907,1781016638000,-795.18,0.00013959,2]
[424625904,1781016638000,-492.01866687,0.00013959,2]
[424625932,1781016638000,-560.85008685,0.00014521,2]
[424625958,1781016638000,-560.85008685,0.00014521,2]
[424625969,1781016638000,-565.948724,0.00014521,2]
[424625965,1781016638000,-560.85008685,0.00014521,2]
[424626015,1781016638000,-17726.37206582,0.00015132,2]
[424626018,1781016638000,-1348.02949894,0.00015132,2]
[424626013,1781016638000,-1136.1752654,0.00015065,2]
[424626007,1781016638000,-457.3719674,0.00014527,2]
[424626011,1781016638000,-154.0,0.00014967,2]
[424626009,1781016638000,-457.3719674,0.00014527,2]
[424625962,1781016638000,-560.85008685,0.00014521,2]
[424626004,1781016638000,-457.3719674,0.00014527,2]
[424626002,1781016638000,-457.3719674,0.00014527,2]
[424625993,1781016638000,-219.7539754,0.00014522,2]
[424625991,1781016638000,-151.0,0.00014522,2]
[424626000,1781016638000,-151.0,0.00014522,2]
[424625998,1781016638000,-151.9081365,0.00014522,2]
[424625995,1781016638000,-457.3719674,0.00014522,2]
[424625987,1781016638000,-565.948724,0.00014521,2]
[424625985,1781016638000,-565.948724,0.00014521,2]
[424625982,1781016638000,-565.948724,0.00014521,2]
[424625980,1781016638000,-565.948724,0.00014521,2]
[424625978,1781016638000,-565.948724,0.00014521,2]
[424625976,1781016638000,-565.948724,0.00014521,2]
[424625973,1781016638000,-565.948724,0.00014521,2]
[424625967,1781016638000,-565.948724,0.00014521,2]
[424625971,1781016638000,-565.948724,0.00014521,2]
[424625989,1781016638000,-672.60829123,0.00014521,2]
[424626126,1781016639000,152.0,0.00017129,30]
[424626270,1781016641000,-42427.37760414,0.00015132,2]
[424626271,1781016641000,-15366.75,0.00015132,2]
[424626268,1781016641000,-2137.95,0.00015132,2]
[424626269,1781016641000,-4052.64258996,0.00015132,2]
[424626536,1781016643000,-5894.7289,0.00015132,2]
[424626533,1781016643000,-5741.8086363,0.00015132,2]
[424626872,1781016646000,-659.20000001,0.00015132,2]
[424626870,1781016646000,-5094.95360547,0.00015132,2]
[424626880,1781016646000,-454.31005594,0.00015132,2]
[424626901,1781016646000,-23775.4044066,0.00015232,2]
[424626878,1781016646000,-5630.33111642,0.00015132,2]
[424626902,1781016646000,-326.5044788,0.00015344,2]
[424626904,1781016646000,-151.0,0.00015344,2]
[424626908,1781016646000,-30.94780033,0.00015344,2]
[424626906,1781016646000,-326.5044788,0.00015344,2]
[424626899,1781016646000,-44370.06428847,0.00015132,2]
[424633167,1781017655000,198.69377818,0.00023288,120]
[424633212,1781017831000,-3533.30895274,0.0001279,2]
[424633213,1781017832000,-298.44309998,0.0001279,2]
[424633215,1781017832000,-1871.05853518,0.00012919,2]
[424633216,1781017832000,-347.12860259,0.0001323,2]
[424633219,1781017832000,-1639.288987,0.00013648,2]
[424633220,1781017832000,-426.4241671,0.000137,2]
[424633217,1781017832000,-199.28535858,0.0001323,2]
[424633221,1781017832000,-457.3719674,0.000137,2]
[424633218,1781017832000,-337.8745744,0.00013315,2]
[424633214,1781017832000,-1168.24794728,0.0001279,2]
[424633230,1781017832000,-115.26630738,0.00013949,2]
[424633225,1781017832000,-457.3719674,0.000137,2]
[424633222,1781017832000,-23.53191788,0.000137,2]
[424633224,1781017832000,-457.3719674,0.000137,2]
[424633227,1781017832000,-616.92866392,0.00013949,2]
[424633226,1781017832000,-457.3719674,0.000137,2]
[424633229,1781017832000,-508.14369438,0.00013949,2]
[424633223,1781017832000,-127.46808212,0.000137,2]
[424633228,1781017832000,-500.0,0.00013949,2]
[424633254,1781017837000,152.0,6.526e-05,7]
[424633301,1781017840000,-3112.95,0.0001381,2]
[424633328,1781017841000,-1814.77133844,0.0001381,2]
[424633778,1781017846000,-500.0,0.00014049,2]
[424633772,1781017846000,-500.0,0.0001395,2]
[424633773,1781017846000,-1000.0,0.00013988,2]
[424633776,1781017846000,-500.0,0.00014049,2]
[424633790,1781017846000,-457.3719674,0.00014522,2]
[424633780,1781017846000,-500.0,0.00014049,2]
[424633779,1781017846000,-500.0,0.00014049,2]
[424633786,1781017846000,-500.0,0.00014049,2]
[424633788,1781017846000,-461.3604329,0.00014522,2]
[424633787,1781017846000,-206.34950732,0.0001405,2]
[424633782,1781017846000,-500.0,0.00014049,2]
[424633785,1781017846000,-500.0,0.00014049,2]
[424633781,1781017846000,-500.0,0.00014049,2]
[424633789,1781017846000,-457.3719674,0.00014522,2]
[424633791,1781017846000,-457.3719674,0.00014522,2]
[424633793,1781017846000,-329.5950278,0.00014522,2]
[424633796,1781017846000,-457.3719674,0.00014522,2]
[424633775,1781017846000,-500.0,0.00014049,2]
[424633783,1781017846000,-500.0,0.00014049,2]
[424633774,1781017846000,-500.0,0.00014049,2]
[424633755,1781017846000,-500.0,0.00013949,2]
[424633768,1781017846000,-500.0,0.00013949,2]
[424633754,1781017846000,-384.73369262,0.00013949,2]
[424633753,1781017846000,-72.27866156,0.0001381,2]
[424633757,1781017846000,-500.0,0.00013949,2]
[424633756,1781017846000,-500.0,0.00013949,2]
[424633764,1781017846000,-500.0,0.00013949,2]
[424633765,1781017846000,-500.0,0.00013949,2]
[424633794,1781017846000,-457.3719674,0.00014522,2]
[424633759,1781017846000,-500.0,0.00013949,2]
[424633770,1781017846000,-374.13811561,0.00013949,2]
[424633763,1781017846000,-491.96245214,0.00013949,2]
[424633761,1781017846000,-500.0,0.00013949,2]
[424633762,1781017846000,-500.0,0.00013949,2]
[424633758,1781017846000,-500.0,0.00013949,2]
[424633766,1781017846000,-500.0,0.00013949,2]
[424633767,1781017846000,-500.0,0.00013949,2]
[424633769,1781017846000,-500.0,0.00013949,2]
[424633777,1781017846000,-500.0,0.00014049,2]
[424633771,1781017846000,-500.0,0.00013949,2]
[424633760,1781017846000,-500.0,0.00013949,2]
[424633795,1781017846000,-457.3719674,0.00014522,2]
[424633784,1781017846000,-500.0,0.00014049,2]
[424633802,1781017846000,-326.5044788,0.00014522,2]
[424633820,1781017846000,-326.5044788,0.00014527,2]
[424633821,1781017846000,-326.5044788,0.00014527,2]
[424633823,1781017846000,-284.26673417,0.00014594,2]
[424633826,1781017846000,-42427.37760414,0.0001493,2]
[424633817,1781017846000,-326.5044788,0.00014527,2]
[424633827,1781017846000,-784.18525431,0.00015,2]
[424633824,1781017846000,-324.55139136,0.00014594,2]
[424633825,1781017846000,-2953.44,0.0001483,2]
[424633828,1781017846000,-547.18828255,0.00015014,2]
[424633838,1781017846000,-152.0,0.00015396,7]
[424633829,1781017846000,-3575.60537855,0.00015014,2]
[424633831,1781017846000,-326.5044788,0.00015344,2]
[424633837,1781017846000,-152.0,0.00015391,7]
[424633832,1781017846000,-326.5044788,0.00015344,2]
[424633833,1781017846000,-326.5044788,0.00015344,2]
[424633835,1781017846000,-326.5044788,0.00015344,2]
[424633836,1781017846000,-242.49228959,0.00015362,2]
[424633834,1781017846000,-326.5044788,0.00015344,2]
[424633800,1781017846000,-457.3719674,0.00014522,2]
[424633819,1781017846000,-326.5044788,0.00014527,2]
[424633822,1781017846000,-326.5044788,0.00014527,2]
[424633830,1781017846000,-3096.1995889,0.00015014,2]
[424633816,1781017846000,-261.0555209,0.00014522,2]
[424633792,1781017846000,-457.3719674,0.00014522,2]
[424633818,1781017846000,-457.3719674,0.00014527,2]
[424633801,1781017846000,-326.5044788,0.00014522,2]
[424633799,1781017846000,-457.3719674,0.00014522,2]
[424633797,1781017846000,-457.3719674,0.00014522,2]
[424633814,1781017846000,-326.5044788,0.00014522,2]
[424633804,1781017846000,-457.3719674,0.00014522,2]
[424633807,1781017846000,-457.3719674,0.00014522,2]
[424633805,1781017846000,-457.3719674,0.00014522,2]
[424633798,1781017846000,-326.5044788,0.00014522,2]
[424633815,1781017846000,-457.3719674,0.00014522,2]
[424633806,1781017846000,-326.5044788,0.00014522,2]
[424633813,1781017846000,-326.5044788,0.00014522,2]
[424633808,1781017846000,-326.5044788,0.00014522,2]
[424633809,1781017846000,-326.5044788,0.00014522,2]
[424633811,1781017846000,-326.5044788,0.00014522,2]
[424633803,1781017846000,-326.5044788,0.00014522,2]
[424633812,1781017846000,-326.5044788,0.00014522,2]
[424633810,1781017846000,-326.5044788,0.00014522,2]
[424633874,1781017847000,-399.11668522,0.00016438,2]
[424633875,1781017847000,-672.92,0.00016438,2]
[424633873,1781017847000,-500.0,0.00016438,2]
[424633876,1781017847000,-751.27,0.00016438,2]
[424633869,1781017847000,-500.0,0.00016438,2]
[424633877,1781017847000,-531.41,0.00016438,2]
[424633872,1781017847000,-500.0,0.00016438,2]
[424633880,1781017847000,-500.0,0.00016438,2]
[424633868,1781017847000,-500.0,0.00016438,2]
[424633878,1781017847000,-1003.61,0.00016438,2]
[424633879,1781017847000,-727.22,0.00016438,2]
[424633888,1781017847000,-500.0,0.00016438,2]
[424633882,1781017847000,-328.6782389,0.00016438,2]
[424633884,1781017847000,-500.0,0.00016438,2]
[424633883,1781017847000,-171.3217611,0.00016438,2]
[424633885,1781017847000,-662.46,0.00016438,2]
[424633887,1781017847000,-500.0,0.00016438,2]
[424633886,1781017847000,-500.0,0.00016438,2]
[424633889,1781017847000,-500.0,0.00016438,2]
[424633891,1781017847000,-655.73,0.00016438,2]
[424633902,1781017847000,-500.0,0.00016438,2]
[424633901,1781017847000,-500.0,0.00016438,2]
[424633890,1781017847000,-757.89,0.00016438,2]
[424633881,1781017847000,-500.0,0.00016438,2]
[424633871,1781017847000,-500.0,0.00016438,2]
[424633842,1781017847000,-1729.73704465,0.00015876,2]
[424633867,1781017847000,-500.0,0.00016438,2]